Cogmind - Beta 11 X5 @@@ ROGUE MODE // 2021.07.15 @ 15:26:00 Player: AlmondRoll Result: Destroyed by H-88 Terminator with KE Penetrator Performance ------------- Evolutions (8) 4000 Regions Visited (26) 5200 Robots Destroyed (59) 295 Value Destroyed (1595) 1595 Prototype IDs (46) 920 Alien Tech Used (3) 600 Bonus (10621) 10621 TOTAL SCORE: 23231 Bonus ------- High Alert Combat Kills 150 Follower Combat Kills 671 Met Zhirov 300 Met Warlord at Base 500 MAIN.C Attacked Warlord 500 Found Hidden Lab 3000 Used Core Reset Matrix 3000 Met Warlord at Research 2000 Pursued by Intercept 500 Cogmind --------- Core Integrity 0/1450 Matter 276/300 Energy 98/100 System Corruption 5% Temperature Cool (0) Movement Core (50) Location -2/Testing Parts ------- > --- POWER (1) -------- (None) > --- PROPULSION (6) --- (None) > --- UTILITY (12) ----- (None) > --- WEAPON (4) ------- (None) > --- INVENTORY (5) ---- Advanced Force Booster Warp Cannon Vortex Lance (40) Vortex Lance (40) GAL Module Peak State ------------ > --- POWER ------------ Light Quantum Reactor > --- PROPULSION ------- Q-thruster Q-thruster Q-thruster Q-thruster Improved Diametric Drive Improved Q-thruster > --- UTILITY ---------- Advanced Power Amplifier Medium Storage Unit Spectral Analyzer Experimental Sensor Array Advanced Phase Shifter Experimental Propulsion Shielding Medium Regenerative Plating Experimental Shield Generator Advanced Hacking Suite Improved System Shield Ghost Barrier Quantum Router > --- WEAPON ----------- (None) > --- INVENTORY -------- Light Angular Momentum Engine Nanoactuators Advanced Force Booster Advanced ECM Suite Mobile Refinery Mk. CCLXVII Transdimensional Reconstructor Warp Cannon Vortex Lance Vortex Lance GAL Module [Rating: 155] Favorites ----------- Power Angular Momentum Engine Engine Angular Momentum Engine Power Core Light Nuclear Core Reactor Light Quantum Reactor Propulsion Biomechanical Wings Treads Light Treads Leg Aluminum Leg Wheel Compact Wheel Flight Unit Biomechanical Wings Utility Improved Hacking Suite Device Experimental Sensor Array Storage Medium Storage Unit Processor Advanced Signal Interpreter Hackware Improved Hacking Suite Protection Light Armor Plating Weapon Phasing Sabre Energy Gun Small Laser Energy Cannon Beam Cannon Ballistic Gun Light Assault Rifle Launcher Mini Grenade Launcher Special Weapon Mining Laser Slashing Weapon Phasing Sabre Piercing Weapon Makeshift Spear Build | -11 -10 -10 -9 -8 -7 -7 -6 -6 -6 -6 -5 -5 -5 -5 -5 -4 -4 -4 -4 -4 -3 -3 -3 -3 -2 -2 ------- Run | Scr Mat Min Mat Mat Fac Sto Fac Low Low Zio Pro Fac Upp Upp War Pro Fac Upp Upp Zhi Pro Res Arm Lab Res Tes Slots Evolved 16 | . . . 2 2 2 . 2 . . . . 2 . . . . 2 . . . . 2 . . 2 . Power . | . . . . . . . . . . . . . . . . . . . . . . . . . . . Propulsion 4 | . . . . 2 1 . . . . . . 1 . . . . . . . . . . . . . . Utility 10 | . . . 2 . 1 . 2 . . . . 1 . . . . 2 . . . . 2 . . . . Weapon 2 | . . . . . . . . . . . . . . . . . . . . . . . . . 2 . Parts Attached 222 | 4 11 . 28 13 7 4 18 4 5 3 6 10 4 1 11 . 15 . . 4 3 6 13 8 34 10 Power 14 | . . . 3 2 . . 1 1 . . . 2 . . . . . . . . 1 1 . . 1 2 Engine 7 | . . . 1 . . . . 1 . . . 2 . . . . . . . . 1 1 . . . 1 Core 5 | . . . 2 2 . . 1 . . . . . . . . . . . . . . . . . . . Reactor 2 | . . . . . . . . . . . . . . . . . . . . . . . . . 1 1 Propulsion 38 | 2 6 . 3 4 1 2 4 . 1 . . 2 . . 3 . . . . . 1 . 1 . 5 3 Treads 4 | . 2 . . . . . . . . . . . . . . . . . . . . . . . . 2 Leg 2 | . . . 2 . . . . . . . . . . . . . . . . . . . . . . . Wheel 7 | 2 4 . 1 . . . . . . . . . . . . . . . . . . . . . . . Hover . | . . . . . . . . . . . . . . . . . . . . . . . . . . . Flight 25 | . . . . 4 1 2 4 . 1 . . 2 . . 3 . . . . . 1 . 1 . 5 1 Utility 99 | 1 2 . 9 5 5 . 8 1 1 . . 3 3 1 4 . 11 . . 4 1 3 5 4 25 3 Device 58 | 1 . . 4 3 2 . 2 . 1 . . 1 2 1 2 . 8 . . 3 . 1 5 2 17 3 Storage 6 | . 1 . 2 1 . . . . . . . . . . 1 . . . . . . . . . 1 . Processor 8 | . . . . . . . 1 1 . . . . . . 1 . . . . . . . . . 5 . Hackware 11 | . . . . 1 2 . 2 . . . . 2 . . . . 1 . . . . 1 . 1 1 . Protection 16 | . 1 . 3 . 1 . 3 . . . . . 1 . . . 2 . . 1 1 1 . 1 1 . Artifact . | . . . . . . . . . . . . . . . . . . . . . . . . . . . Weapon 71 | 1 3 . 13 2 1 2 5 2 3 3 6 3 1 . 4 . 4 . . . . 2 7 4 3 2 Energy Gun 4 | . 1 . 1 . . 1 . . . . . . . . . . . . . . . . . 1 . . Energy Cannon 29 | . 1 . 4 . . . 1 1 1 1 3 1 . . . . 2 . . . . 2 7 3 2 . Ballistic Gun 8 | 1 . . 6 1 . . . . . . . . . . . . . . . . . . . . . . Ballistic Cannon . | . . . . . . . . . . . . . . . . . . . . . . . . . . . Launcher 3 | . . . . 1 . 1 1 . . . . . . . . . . . . . . . . . . . Special Weapon 3 | . 1 . 2 . . . . . . . . . . . . . . . . . . . . . . . Impact Weapon . | . . . . . . . . . . . . . . . . . . . . . . . . . . . Slashing Weapon 17 | . . . . . 1 . 3 1 1 2 3 1 1 . 2 . 2 . . . . . . . . . Piercing Weapon 7 | . . . . . . . . . 1 . . 1 . . 2 . . . . . . . . . 1 2 Special Melee Weapon . | . . . . . . . . . . . . . . . . . . . . . . . . . . . Unidentified Prototypes 35 | . . . 2 1 . 3 1 . . . . . 1 . 5 . 3 . . 5 . . . 5 5 4 Corrupted Parts 1 | . . . 1 . . . . . . . . . . . . . . . . . . . . . . . System Corruption 1 | . . . 1 . . . . . . . . . . . . . . . . . . . . . . . Parts Lost 34 | . . . 13 . . . . 2 . . . 2 . . . . 1 . . . 6 1 . . 6 3 Power 6 | . . . 2 . . . . 1 . . . 1 . . . . . . . . 1 . . . . 1 Propulsion 7 | . . . 2 . . . . . . . . . . . . . . . . . 2 . . . 2 1 Utility 14 | . . . 5 . . . . 1 . . . 1 . . . . 1 . . . 1 1 . . 4 . Weapon 7 | . . . 4 . . . . . . . . . . . . . . . . . 2 . . . . 1 Highest Loss Streak 8 | . . . 8 . . . . 1 . . . 1 . . . . 1 . . . 4 1 . . 6 1 Average Slot Usage (%) 92 | . 100 100 89 97 100 100 98 89 91 100 100 99 100 100 100 100 99 100 100 98 88 73 72 79 72 4 Engine 5 | . 14 14 5 . . . . . 6 6 6 4 5 5 5 5 5 5 5 5 5 3 4 4 . 1 Core 1 | . . . 4 9 7 7 5 2 . . . . . . . . . . . . . . . . . . Wheel 5 | . 20 28 15 . . . . . . . . . . . . . . . . . . . . . . . Flight 21 | . . . . 34 38 38 32 33 33 33 33 35 35 35 35 35 31 31 31 31 28 23 23 23 23 1 Device 9 | . 4 . 11 23 7 7 7 3 3 6 6 6 5 8 10 11 14 15 15 17 15 6 10 14 11 1 Storage 7 | . 14 14 12 4 7 7 6 6 6 6 6 5 5 5 5 5 5 5 5 5 5 4 4 4 3 . Processor 5 | . . . . . . . 5 13 13 13 13 11 11 11 11 11 10 5 5 5 5 4 4 4 4 . Hackware 11 | . . . . 7 22 15 20 13 13 13 13 15 17 17 17 17 19 21 21 21 21 19 19 18 15 . Protection 5 | . 9 14 11 . . 7 4 6 6 6 6 5 4 2 . . 1 5 5 2 1 4 4 7 7 . Energy Cannon 2 | . 8 14 6 . . . . 1 . . 1 . . . . . . . . . . 3 . . . . Ballistic Gun 4 | . 14 14 11 8 . . . . . . . . . . . . . . . . . . . . . . Slashing Weapon 4 | . . . . . 7 7 5 4 5 6 4 4 10 11 10 11 9 10 10 10 5 . . . . . Naked Turns 76 | . . . . . . . . . . . . . . . . . . . . . . . . . 14 62 Heaviest Build 58 | 13 32 32 58 21 22 22 26 27 29 29 29 34 34 34 33 33 36 35 35 37 37 35 44 42 42 8 Greatest Support 115 | 20 40 26 34 29 25 25 28 28 29 29 29 34 34 34 39 39 39 39 39 39 39 33 36 42 47 115 Greatest Overweight (x) 11 | . 1 1 4 . . . . 5 . . . . . . . . . . . . . 1 1 . 11 2 Average Overweight (x) . | . . 1 . . . . . . . . . . . . . . . . . . . . . . . . Largest Inventory Capacity 20 | 8 15 15 20 20 10 10 10 10 10 10 10 10 10 10 10 10 10 10 10 10 10 10 10 10 10 5 Average Capacity 11 | 8 14 15 18 7 10 10 10 10 10 10 10 10 10 10 10 10 10 10 10 10 10 10 10 10 9 5 Most Carried 20 | 6 15 15 20 19 10 10 10 10 10 10 10 10 10 10 10 10 10 10 10 10 10 10 10 10 10 5 Average Carried 11 | 4 12 15 16 6 9 9 9 9 9 9 9 9 10 10 9 10 9 9 10 9 7 9 9 9 9 4 Final Capacity 20 | 8 15 15 20 10 10 10 10 10 10 10 10 10 10 10 10 10 10 10 10 10 10 10 10 10 5 5 Final Carried 19 | 6 15 15 19 9 10 10 9 10 10 10 10 10 10 10 10 10 9 10 10 10 7 9 10 10 5 5 Class Distribution -------------------- 34% | Hacker-Sprinter 21% | Mutant 15% | Hacker-Ninja 9% | Scavenger-Mutant 7% | Hacker-Scout 4% | Hacker-Mutant Dominant Class ---------------- Mutant | -10/Materials Mutant | -10/Mines Scavenger-Mutant | -9/Materials Sprinter | -8/Materials Hacker-Sprinter | -7/Factory Hacker-Sprinter | -7/Storage Hacker-Sprinter | -6/Factory Hacker-Scout | -6/Lower Caves Hacker-Sprinter | -6/Lower Caves Hacker-Sprinter | -6/Zion Hacker-Sprinter | -5/Proximity Caves Hacker-Sprinter | -5/Factory Hacker-Scout | -5/Upper Caves Hacker-Ninja | -5/Upper Caves Hacker-Ninja | -5/Warlord Hacker-Ninja | -4/Proximity Caves Hacker-Ninja | -4/Factory Hacker-Sprinter | -4/Upper Caves Hacker-Sprinter | -4/Upper Caves Hacker-Sprinter | -4/Zhirov Hacker-Sprinter | -3/Proximity Caves Hacker-Sprinter | -3/Research Hacker-Sprinter | -3/Armory Wizard-Sprinter | -3/Lab Hacker-Mutant | -2/Research Alien-Mutant | -2/Testing Resources | -11 -10 -10 -9 -8 -7 -7 -6 -6 -6 -6 -5 -5 -5 -5 -5 -4 -4 -4 -4 -4 -3 -3 -3 -3 -2 -2 ----------- Run | Scr Mat Min Mat Mat Fac Sto Fac Low Low Zio Pro Fac Upp Upp War Pro Fac Upp Upp Zhi Pro Res Arm Lab Res Tes Matter Collected 2767 | 243 146 3 559 125 108 . 91 148 23 84 . 105 116 10 . 76 174 10 . . 4 . 211 79 331 121 Remotely . | . . . . . . . . . . . . . . . . . . . . . . . . . . . Salvage Created 3070 | 90 328 168 1498 . 78 . 41 22 . . . 105 . . . . . 593 79 . . . . . 68 . Parts 138 | 4 18 8 93 . 2 . 4 . . . . 2 . . . . . 2 . . . . . . 5 . Haulers Intercepted 6 | . 1 . 4 . . . . . . . . 1 . . . . . . . . . . . . . . Recyclers Shooed 2 | . 1 . . . . . . . . . . . . . . . . . . . . . . . 1 . Parts Field Recycled . | . . . . . . . . . . . . . . . . . . . . . . . . . . . Retrieved Matter . | . . . . . . . . . . . . . . . . . . . . . . . . . . . Parts Self-Destructed 10 | . . . . . . . . . . . . . . . 5 . . 2 3 . . . . . . . Prevented 21 | . . . . . . . . . . . . . . . 13 . . . 7 . 1 . . . . . Kills | -11 -10 -10 -9 -8 -7 -7 -6 -6 -6 -6 -5 -5 -5 -5 -5 -4 -4 -4 -4 -4 -3 -3 -3 -3 -2 -2 ------- Run | Scr Mat Min Mat Mat Fac Sto Fac Low Low Zio Pro Fac Upp Upp War Pro Fac Upp Upp Zhi Pro Res Arm Lab Res Tes Combat Hostiles Destroyed 30 | . 5 . 25 . . . . . . . . . . . . . . . . . . . . . . . Guns 18 | . 3 . 15 . . . . . . . . . . . . . . . . . . . . . . . Cannons 9 | . 2 . 7 . . . . . . . . . . . . . . . . . . . . . . . AOE 1 | . . . 1 . . . . . . . . . . . . . . . . . . . . . . . Classes Destroyed 11 | 2 4 . 5 . . . . . . . . . . . . . . . . . . . . . . . Worker 4 | . . . 2 . . . 1 . . . . . . . . . . . . . . . . . 1 . Builder 3 | . 1 . 2 . . . . . . . . . . . . . . . . . . . . . . . Tunneler 2 | 1 . 1 . . . . . . . . . . . . . . . . . . . . . . . . Hauler 6 | . 1 . 4 . . . . . . . . 1 . . . . . . . . . . . . . . Recycler 5 | 1 . 2 1 . 1 . . . . . . . . . . . . . . . . . . . . . Operator 7 | . 1 . 5 . . . 1 . . . . . . . . . . . . . . . . . . . Watcher 2 | . . . 1 . . . . . . . . . . . . . . . . . . . . . 1 . Grunt 23 | . 5 . 18 . . . . . . . . . . . . . . . . . . . . . . . Brawler 1 | . . . 1 . . . . . . . . . . . . . . . . . . . . . . . Protector 1 | . . . 1 . . . . . . . . . . . . . . . . . . . . . . . Sentry 5 | . . . 5 . . . . . . . . . . . . . . . . . . . . . . . Decomposer 2 | . . . . . . . . 1 . . . . . . . . . 1 . . . . . . . . Packrat 3 | . . . . . . . . . . . . . . . . . . 3 . . . . . . . . Best Kill Streak 7 | 2 2 2 7 . 1 . 1 . . . . 1 . . . . . . . . . . . . 2 . Combat Bots Only 6 | . 2 . 6 . . . . . . . . . . . . . . . . . . . . . . . Max Kills in Single Turn 2 | 1 1 1 2 . 1 . 1 1 . . . 1 . . . . . 1 . . . . . . 1 . Gunslinging . | . . . . . . . . . . . . . . . . . . . . . . . . . . . Exploded 1 | . . . 1 . . . . . . . . . . . . . . . . . . . . . . . Melee . | . . . . . . . . . . . . . . . . . . . . . . . . . . . Uniques/NPCs Destroyed . | . . . . . . . . . . . . . . . . . . . . . . . . . . . Combat | -11 -10 -10 -9 -8 -7 -7 -6 -6 -6 -6 -5 -5 -5 -5 -5 -4 -4 -4 -4 -4 -3 -3 -3 -3 -2 -2 -------- Run | Scr Mat Min Mat Mat Fac Sto Fac Low Low Zio Pro Fac Upp Upp War Pro Fac Upp Upp Zhi Pro Res Arm Lab Res Tes Damage Taken 6627 | . 349 . 1677 191 29 129 29 353 49 . 73 250 . . . . 189 . . . 418 220 106 219 1265 1081 Core 2611 | . 143 . 329 42 . 29 . 150 15 . 73 82 . . . . 74 . . . 107 56 14 25 490 982 Absorbed by Shields . | . . . . . . . . . . . . . . . . . . . . . . . . . . . Core Remaining (%) 75 | 100 . 42 17 92 . 95 . . . . 72 . . . . 91 . . . . 75 . . 92 . . Volleys Fired 233 | 3 40 3 123 5 . . 2 2 2 1 17 . . . . . 3 . . . . 8 9 5 10 . Largest 2 | 2 2 2 2 1 . . 1 1 1 1 1 . . . . . 1 . . . . 1 1 1 1 . Hottest 120 | 60 100 80 116 30 . . 90 90 90 90 90 . . . . . 98 . . . . 98 120 120 100 . Shots Fired 353 | 6 75 6 202 5 . . 2 2 2 1 17 . . . . . 3 . . . . 8 9 5 10 . Gun 202 | 6 56 3 137 . . . . . . . . . . . . . . . . . . . . . . . Cannon 140 | . 15 3 63 . . . 2 2 2 1 17 . . . . . 3 . . . . 8 9 5 10 . Launcher 5 | . . . . 5 . . . . . . . . . . . . . . . . . . . . . . Special 6 | . 4 . 2 . . . . . . . . . . . . . . . . . . . . . . . Kinetic 171 | 3 36 3 129 . . . . . . . . . . . . . . . . . . . . . . . Thermal 169 | 3 39 3 65 . . . 2 2 2 1 17 . . . . . 3 . . . . 8 9 5 10 . Explosive 5 | . . . . 5 . . . . . . . . . . . . . . . . . . . . . . Electromagnetic 8 | . . . 8 . . . . . . . . . . . . . . . . . . . . . . . Robot Hit Streak 17 | 6 9 5 15 . . . . . . . . . . . . . . . . . . . . . 17 . Robot Miss Streak 4 | . 3 1 4 . . . . . . . . . . . . . . . . . . . . . . . Penetration Max . | . . . . . . . . . . . . . . . . . . . . . . . . . . . Secondary Targets . | . . . . . . . . . . . . . . . . . . . . . . . . . . . Shots Hit Robots 239 | 6 49 5 147 . 1 . 7 1 . . . 2 . . . . . 15 1 . . . . . 5 . Core Hits 98 | 5 18 3 58 . 1 . 2 . . . . 1 . . . . . 7 1 . . . . . 2 . Critical Kills 1 | . . . 1 . . . . . . . . . . . . . . . . . . . . . . . Critical Parts Destroyed 1 | . . . 1 . . . . . . . . . . . . . . . . . . . . . . . Critical Strikes 3 | . . . 3 . . . . . . . . . . . . . . . . . . . . . . . Meltdown 1 | . . . 1 . . . . . . . . . . . . . . . . . . . . . . . Destroy 1 | . . . 1 . . . . . . . . . . . . . . . . . . . . . . . Corrupt 1 | . . . 1 . . . . . . . . . . . . . . . . . . . . . . . Melee Attacks 250 | . . . . . 5 2 34 4 4 33 16 19 36 11 2 4 59 16 4 . . . . . . 1 Impact . | . . . . . . . . . . . . . . . . . . . . . . . . . . . Slashing 234 | . . . . . 5 2 34 4 4 27 10 16 36 11 2 4 59 16 4 . . . . . . . Piercing 16 | . . . . . . . . . . 6 6 3 . . . . . . . . . . . . . 1 Sneak Attacks 8 | . . . . . 1 . 1 1 . . . 1 . . . . . 4 . . . . . . . . Combat Hostiles . | . . . . . . . . . . . . . . . . . . . . . . . . . . . Follow-up Attacks 2 | . . . . . . . . . . . . . . . . . . 2 . . . . . . . . Damage Inflicted 6235 | 57 579 71 2693 . 128 . 379 115 . . . 184 . . . . . 1619 131 . . . . . 279 . Guns 1927 | 57 357 16 1497 . . . . . . . . . . . . . . . . . . . . . . . Cannons 1424 | . 209 55 881 . . . . . . . . . . . . . . . . . . . . . 279 . Explosions 302 | . . . 302 . . . . . . . . . . . . . . . . . . . . . . . Melee 2556 | . . . . . 128 . 379 115 . . . 184 . . . . . 1619 131 . . . . . . . Ramming 26 | . 13 . 13 . . . . . . . . . . . . . . . . . . . . . . . Kinetic 1684 | 22 220 16 1426 . . . . . . . . . . . . . . . . . . . . . . . Thermal 1772 | 35 346 55 1057 . . . . . . . . . . . . . . . . . . . . . 279 . Explosive . | . . . . . . . . . . . . . . . . . . . . . . . . . . . Electromagnetic 197 | . . . 197 . . . . . . . . . . . . . . . . . . . . . . . Impact . | . . . . . . . . . . . . . . . . . . . . . . . . . . . Slashing 2556 | . . . . . 128 . 379 115 . . . 184 . . . . . 1619 131 . . . . . . . Piercing . | . . . . . . . . . . . . . . . . . . . . . . . . . . . Highest Corruption 5 | . . . 1 . . . 1 1 1 1 . . . . . . . . . . . . . 2 4 5 Average Corruption 1 | . . . 1 . . . 1 1 1 1 . . . . . . . . . . . . . 1 2 4 Corruption Purged . | . . . . . . . . . . . . . . . . . . . . . . . . . . . Effects 7 | . . . . . . . . 2 . . . . . . . . . . . . . . . . . 5 Message Errors 3 | . . . . . . . . 1 . . . . . . . . . . . . . . . . . 2 Matter Fused 2 | . . . . . . . . . . . . . . . . . . . . . . . . . . 2 Heat Flow Errors 1 | . . . . . . . . . . . . . . . . . . . . . . . . . . 1 Energy Discharges 1 | . . . . . . . . 1 . . . . . . . . . . . . . . . . . . Overload Shots . | . . . . . . . . . . . . . . . . . . . . . . . . . . . Overflow Damage 810 | . . . 37 . . . 35 102 . . . . . . . . . 588 . . . . . . 48 . Projectiles 66 | . . . 18 . . . . . . . . . . . . . . . . . . . . . 48 . Explosions 19 | . . . 19 . . . . . . . . . . . . . . . . . . . . . . . Melee 725 | . . . . . . . 35 102 . . . . . . . . . 588 . . . . . . . . Knockbacks . | . . . . . . . . . . . . . . . . . . . . . . . . . . . Impact . | . . . . . . . . . . . . . . . . . . . . . . . . . . . Kinetic . | . . . . . . . . . . . . . . . . . . . . . . . . . . . Secondary . | . . . . . . . . . . . . . . . . . . . . . . . . . . . Self-Inflicted Damage 32 | . . . 6 26 . . . . . . . . . . . . . . . . . . . . . . Shots 1 | . . . . 1 . . . . . . . . . . . . . . . . . . . . . . Rammed 6 | . 4 . 2 . . . . . . . . . . . . . . . . . . . . . . . Targets Rammed 6 | . 4 . 2 . . . . . . . . . . . . . . . . . . . . . . . Kicked . | . . . . . . . . . . . . . . . . . . . . . . . . . . . Crushed . | . . . . . . . . . . . . . . . . . . . . . . . . . . . Highest Temperature 366 | 20 203 46 303 3 2 12 34 60 60 34 204 . . . . . 88 . . . . 7 71 80 366 70 Average Temperature 78 | 15 74 27 99 2 2 6 14 31 36 19 85 . . . . . 37 . . . . 3 19 43 213 70 Received Heat Transfer 1636 | . 216 . 780 99 18 36 . 18 18 . 18 45 . . . . 18 . . . 36 45 . 46 27 216 Effects 5 | . . . 2 . . . . . . . . . . . . . . . . . . . . . 3 . Energy Bleed 1 | . . . 1 . . . . . . . . . . . . . . . . . . . . . . . Interference 4 | . . . 1 . . . . . . . . . . . . . . . . . . . . . 3 . Siege Activations . | . . . . . . . . . . . . . . . . . . . . . . . . . . . Robots Corrupted 1 | . . . 1 . . . . . . . . . . . . . . . . . . . . . . . Combat Hostiles 1 | . . . 1 . . . . . . . . . . . . . . . . . . . . . . . Parts Fried 1 | . . . 1 . . . . . . . . . . . . . . . . . . . . . . . Impact Corruptions . | . . . . . . . . . . . . . . . . . . . . . . . . . . . Robots Melted 1 | . . . 1 . . . . . . . . . . . . . . . . . . . . . . . Combat Hostiles 1 | . . . 1 . . . . . . . . . . . . . . . . . . . . . . . Parts Melted 3 | . . . 3 . . . . . . . . . . . . . . . . . . . . . . . Heat Transferred 2799 | 75 744 111 1647 . . . . . . . . . . . . . . . . . . . . . 222 . Parts Sabotaged . | . . . . . . . . . . . . . . . . . . . . . . . . . . . Parts Stolen . | . . . . . . . . . . . . . . . . . . . . . . . . . . . Parts Stripped . | . . . . . . . . . . . . . . . . . . . . . . . . . . . Power Chain Reactions 2 | . . . 2 . . . . . . . . . . . . . . . . . . . . . . . Missiles Intercepted . | . . . . . . . . . . . . . . . . . . . . . . . . . . . Alert | -11 -10 -10 -9 -8 -7 -7 -6 -6 -6 -6 -5 -5 -5 -5 -5 -4 -4 -4 -4 -4 -3 -3 -3 -3 -2 -2 ------- Run | Scr Mat Min Mat Mat Fac Sto Fac Low Low Zio Pro Fac Upp Upp War Pro Fac Upp Upp Zhi Pro Res Arm Lab Res Tes Peak Influence 903 | 10 154 33 732 268 281 144 614 . . . . 903 . . . . 405 . . . . 266 891 . 186 712 Initial 134 | . 6 33 5 8 60 36 65 . . . . . . . . . . . . . . 27 134 . . 78 Average 248 | 6 62 26 380 113 162 82 225 . . . . 385 . . . . 304 . . . . 109 401 . 106 364 Maximum Alert Level 3 | . . . 3 1 1 . 2 . . . . 3 . . . . 2 . . . . 1 3 . . 3 Low Security (%) 53 | 100 100 100 27 72 55 100 67 . . . . 29 . . . . 11 . . . . 73 53 . 100 19 Level 1 24 | . . . 19 27 44 . 3 . . . . 27 . . . . 86 . . . . 26 . . . 45 Level 2 16 | . . . 44 . . . 29 . . . . 18 . . . . 2 . . . . . 16 . . 33 Level 3 6 | . . . 8 . . . . . . . . 24 . . . . . . . . . . 29 . . 1 Level 4 . | . . . . . . . . . . . . . . . . . . . . . . . . . . . Level 5 . | . . . . . . . . . . . . . . . . . . . . . . . . . . . High Security . | . . . . . . . . . . . . . . . . . . . . . . . . . . . Max Security . | . . . . . . . . . . . . . . . . . . . . . . . . . . . Squads Dispatched 39 | . 3 . 8 1 1 2 2 . . . . 4 . . . . 2 . . . . 1 3 . 4 8 Investigation 7 | . 2 . 1 . . . . . . . . 1 . . . . 1 . . . . 1 . . 1 . Extermination 3 | . . . . . 1 . 1 . . . . . . . . . . . . . . . 1 . . . Reinforcement 21 | . 1 . 6 1 . 2 1 . . . . 2 . . . . 1 . . . . . 1 . . 6 Assault 3 | . . . 1 . . . . . . . . 1 . . . . . . . . . . 1 . . . Garrison 2 | . . . . . . . . . . . . . . . . . . . . . . . . . . 2 Intercept 3 | . . . . . . . . . . . . . . . . . . . . . . . . . 3 . Construction Impeded 2 | . . . . . . . . . . . . . . . . . . . . . . . . . . 2 Haulers Reinforced 2 | . . . . . . . . . . . . 1 . . . . . . . . . . . . . 1 Cargo Convoy Interrupts . | . . . . . . . . . . . . . . . . . . . . . . . . . . . Stealth | -11 -10 -10 -9 -8 -7 -7 -6 -6 -6 -6 -5 -5 -5 -5 -5 -4 -4 -4 -4 -4 -3 -3 -3 -3 -2 -2 --------- Run | Scr Mat Min Mat Mat Fac Sto Fac Low Low Zio Pro Fac Upp Upp War Pro Fac Upp Upp Zhi Pro Res Arm Lab Res Tes Distress Signals 31 | . 2 . 7 3 1 3 1 . . . . 1 . . . . 4 . . . . . 3 . 5 1 Communications Jammed 13 | . . . . . . . . . . . . . . . . . 13 . . . . . . . . . Distress Signals 13 | . . . . . . . . . . . . . . . . . 13 . . . . . . . . . Times Spotted 312 | . 16 . 59 14 11 8 8 9 2 . 1 60 . . . . 31 . 2 . 7 12 31 3 19 19 Peak Tracking Total 18 | . 6 . 8 7 5 11 3 5 2 . 1 16 . . . . 7 . 3 . 5 8 18 3 8 13 Tactical Retreats 49 | . . . 6 5 4 . 1 4 1 . . 13 . . . . 6 . . . 1 2 3 . 2 1 Traps | -11 -10 -10 -9 -8 -7 -7 -6 -6 -6 -6 -5 -5 -5 -5 -5 -4 -4 -4 -4 -4 -3 -3 -3 -3 -2 -2 ------- Run | Scr Mat Min Mat Mat Fac Sto Fac Low Low Zio Pro Fac Upp Upp War Pro Fac Upp Upp Zhi Pro Res Arm Lab Res Tes Traps Triggered 9 | . 3 . . 1 . . 1 . . . . 1 . . . . 2 . . . . 1 . . . . Indirectly . | . . . . . . . . . . . . . . . . . . . . . . . . . . . Trap Hack Attempts . | . . . . . . . . . . . . . . . . . . . . . . . . . . . Triggered . | . . . . . . . . . . . . . . . . . . . . . . . . . . . Disarmed . | . . . . . . . . . . . . . . . . . . . . . . . . . . . Reprogrammed . | . . . . . . . . . . . . . . . . . . . . . . . . . . . Reused . | . . . . . . . . . . . . . . . . . . . . . . . . . . . Traps Extracted . | . . . . . . . . . . . . . . . . . . . . . . . . . . . Installed . | . . . . . . . . . . . . . . . . . . . . . . . . . . . Triggered 8 | . . . . . . . . . . . . . . . 4 . . . 3 . 1 . . . . . Machines | -11 -10 -10 -9 -8 -7 -7 -6 -6 -6 -6 -5 -5 -5 -5 -5 -4 -4 -4 -4 -4 -3 -3 -3 -3 -2 -2 ---------- Run | Scr Mat Min Mat Mat Fac Sto Fac Low Low Zio Pro Fac Upp Upp War Pro Fac Upp Upp Zhi Pro Res Arm Lab Res Tes Machines Disabled 27 | . 1 . 7 1 . 1 . . . . 1 . 1 . 1 . 1 . . . . . 6 2 . 5 Max in Single Turn 4 | . 1 . 4 1 . 1 . . . . 1 . 1 . 1 . 1 . . . . . 1 1 . 1 Garrison Access 7 | . . . . . 1 . 1 . . . . 1 . . . . 2 . . . . . . . 2 . Machines Sabotaged . | . . . . . . . . . . . . . . . . . . . . . . . . . . . Garrisons Compromised . | . . . . . . . . . . . . . . . . . . . . . . . . . . . Overloaded Fab Kills . | . . . . . . . . . . . . . . . . . . . . . . . . . . . Fab Network Shutdowns 2 | . . . . . . . 1 . . . . . . . . . . . . . . . 1 . . . Hacking | -11 -10 -10 -9 -8 -7 -7 -6 -6 -6 -6 -5 -5 -5 -5 -5 -4 -4 -4 -4 -4 -3 -3 -3 -3 -2 -2 --------- Run | Scr Mat Min Mat Mat Fac Sto Fac Low Low Zio Pro Fac Upp Upp War Pro Fac Upp Upp Zhi Pro Res Arm Lab Res Tes Machines Accessed 89 | . 5 1 6 6 7 3 12 . 1 . 1 11 2 2 3 . 11 . . 4 . 4 7 . 3 . Terminals 54 | . 5 1 5 6 3 3 7 . . . . 6 . 1 . . 6 . . . . 4 5 . 2 . Fabricators 10 | . . . . . 1 . 2 . . . . 3 . . . . 2 . . . . . 2 . . . Repair Stations 4 | . . . . . 2 . 2 . . . . . . . . . . . . . . . . . . . Recycling Units 1 | . . . . . . . . . . . . 1 . . . . . . . . . . . . . . Scanalyzers 2 | . . . 1 . . . . . . . . . . . . . 1 . . . . . . . . . Garrison Access 6 | . . . . . 1 . 1 . . . . 1 . . . . 2 . . . . . . . 1 . Total Hacks 275 | . 13 5 24 20 19 8 30 . 1 . 1 33 7 3 3 . 39 . . 17 . 13 29 . 10 . Successful 173 | . 8 . 16 8 12 5 22 . 1 . 1 22 7 3 3 . 23 . . 17 . 5 17 . 3 . Failed 101 | . 5 5 8 11 7 3 8 . . . . 11 . . . . 16 . . . . 8 12 . 7 . Catastrophic 10 | . . 1 2 1 . . . . . . . . . . . . 1 . . . . 2 2 . 1 . Database Lockouts 1 | . . . . 1 . . . . . . . . . . . . . . . . . . . . . . Manual 116 | . 13 5 11 18 6 2 8 . . . . 16 . . . . 15 . . . . 10 10 1 1 . Terminals 180 | . 13 5 20 20 10 8 19 . . . . 18 . 2 . . 23 . . . . 13 20 . 9 . Fabricators 35 | . . . . . 3 . 6 . . . . 9 . . . . 8 . . . . . 9 . . . Repair Stations 8 | . . . . . 4 . 4 . . . . . . . . . . . . . . . . . . . Recycling Units 5 | . . . . . . . . . . . . 5 . . . . . . . . . . . . . . Scanalyzers 8 | . . . 4 . . . . . . . . . . . . . 4 . . . . . . . . . Garrison Access 9 | . . . . . 2 . 1 . . . . 1 . . . . 4 . . . . . . . 1 . Terminal Hacks 92 | . 5 . 9 5 3 4 8 . 1 . 1 9 7 3 3 . 7 . . 17 . 1 7 . 2 . Record 17 | . . . . . . . . . . . 1 . 6 2 1 . 1 . . 5 . . . . 1 . Part Schematic 7 | . . . . . 1 . . . . . . 1 . . . . 1 . . 4 . . . . . . Robot Analysis 14 | . 5 . 1 2 . 2 . . . . . . . . . . . . . 4 . . . . . . Prototype ID Bank 5 | . . . . . . 1 . . . . . . . . . . . . . 4 . . . . . . Open Door 7 | . . . . . . 1 . . 1 . . . 1 1 2 . . . . . . . 1 . . . Level Access Points 1 | . . . . 1 . . . . . . . . . . . . . . . . . . . . . . Branch Access Points 5 | . . . . . 1 . 1 . . . . 1 . . . . 1 . . . . . . . 1 . Emergency Access Points 1 | . . . . . . . . . . . . . . . . . 1 . . . . . . . . . Machine Index 1 | . . . . . . . 1 . . . . . . . . . . . . . . . . . . . Terminal Index 7 | . . . 1 1 1 . 1 . . . . 1 . . . . . . . . . 1 1 . . . Alert Level 1 | . . . 1 . . . . . . . . . . . . . . . . . . . . . . . Unreport Threat 7 | . . . 4 1 . . . . . . . . . . . . . . . . . . 2 . . . Locate Traps 6 | . . . 1 . . . 2 . . . . . . . . . 2 . . . . . 1 . . . Security Status 1 | . . . . . . . . . . . . 1 . . . . . . . . . . . . . . Surveillance Status 1 | . . . . . . . . . . . . 1 . . . . . . . . . . . . . . Recall Extermination 1 | . . . . . . . 1 . . . . . . . . . . . . . . . . . . . Recall Reinforcements 1 | . . . . . . . . . . . . 1 . . . . . . . . . . . . . . Recall Assault 1 | . . . . . . . . . . . . 1 . . . . . . . . . . . . . . Hauler Manifests 4 | . . . 1 . . . 2 . . . . 1 . . . . . . . . . . . . . . Zone Layout 4 | . . . . . . . . . . . . 1 . . . . 1 . . . . . 2 . . . Fabricator Hacks 20 | . . . . . 2 . 4 . . . . 3 . . . . 4 . . . . . 7 . . . Load Schematic 9 | . . . . . 1 . 2 . . . . 2 . . . . 2 . . . . . 2 . . . Build 11 | . . . . . 1 . 2 . . . . 1 . . . . 2 . . . . . 5 . . . Repair Station Hacks 7 | . . . . . 3 . 4 . . . . . . . . . . . . . . . . . . . Scan Component 4 | . . . . . 2 . 2 . . . . . . . . . . . . . . . . . . . Repair 3 | . . . . . 1 . 2 . . . . . . . . . . . . . . . . . . . Recycling Unit Hacks 1 | . . . . . . . . . . . . 1 . . . . . . . . . . . . . . Retrieve Components 1 | . . . . . . . . . . . . 1 . . . . . . . . . . . . . . Scanalyzer 7 | . . . 4 . . . . . . . . . . . . . 3 . . . . . . . . . Insert Component 4 | . . . 2 . . . . . . . . . . . . . 2 . . . . . . . . . Analyze 3 | . . . 2 . . . . . . . . . . . . . 1 . . . . . . . . . Garrison Access Hacks 6 | . . . . . 1 . 1 . . . . 1 . . . . 2 . . . . . . . 1 . Seal Access 6 | . . . . . 1 . 1 . . . . 1 . . . . 2 . . . . . . . 1 . Unauthorized Hacks 40 | . 3 . 3 3 3 1 5 . . . . 8 . . . . 7 . . . . 4 3 . . . Terminals 28 | . 3 . 3 3 2 1 4 . . . . 2 . . . . 3 . . . . 4 3 . . . Track 2 | . . . . . . . . . . . . . . . . . . . . . . 1 1 . . . Assimilate 4 | . 1 . . 1 1 . 1 . . . . . . . . . . . . . . . . . . . Botnet 18 | . 2 . 2 2 1 1 2 . . . . 2 . . . . 2 . . . . 2 2 . . . Disrupt 1 | . . . . . . . . . . . . . . . . . . . . . . 1 . . . . Operators 3 | . . . 1 . . . 1 . . . . . . . . . 1 . . . . . . . . . Fabricators 8 | . . . . . 1 . 1 . . . . 2 . . . . 4 . . . . . . . . . Report 2 | . . . . . . . . . . . . 1 . . . . 1 . . . . . . . . . Prioritize 2 | . . . . . 1 . . . . . . 1 . . . . . . . . . . . . . . Siphon 3 | . . . . . . . 1 . . . . . . . . . 2 . . . . . . . . . Haulers 1 | . . . . . . . . . . . . . . . . . 1 . . . . . . . . . Repair Stations . | . . . . . . . . . . . . . . . . . . . . . . . . . . . Recycling Units 4 | . . . . . . . . . . . . 4 . . . . . . . . . . . . . . Monitor 1 | . . . . . . . . . . . . 1 . . . . . . . . . . . . . . Reject 1 | . . . . . . . . . . . . 1 . . . . . . . . . . . . . . Recyclers 1 | . . . . . . . . . . . . 1 . . . . . . . . . . . . . . Mask 1 | . . . . . . . . . . . . 1 . . . . . . . . . . . . . . Scanalyzers . | . . . . . . . . . . . . . . . . . . . . . . . . . . . Garrison Access . | . . . . . . . . . . . . . . . . . . . . . . . . . . . Data Cores Recovered . | . . . . . . . . . . . . . . . . . . . . . . . . . . . Used . | . . . . . . . . . . . . . . . . . . . . . . . . . . . Hacking Detections 61 | . 5 1 5 5 7 2 9 . . . . 8 . . . . 7 . . . . 4 6 . 2 . Full Trace Events 6 | . 2 . 1 . . . . . . . . 1 . . . . . . . . . 1 . . 1 . Feedback Events . | . . . . . . . . . . . . . . . . . . . . . . . . . . . Feedback Blocked . | . . . . . . . . . . . . . . . . . . . . . . . . . . . Robot Schematics Acquired . | . . . . . . . . . . . . . . . . . . . . . . . . . . . Robots Built . | . . . . . . . . . . . . . . . . . . . . . . . . . . . Matter . | . . . . . . . . . . . . . . . . . . . . . . . . . . . Time . | . . . . . . . . . . . . . . . . . . . . . . . . . . . Total Robot Build Rating . | . . . . . . . . . . . . . . . . . . . . . . . . . . . Part Schematics Acquired 10 | . . . 2 . 1 . . . . . . 1 . . . . 2 . . 4 . . . . . . Parts Built 10 | . . . . . 1 . 1 . . . . 1 . . . . 2 . . . . . 5 . . . Matter 3087 | . . . . . 190 . 332 . . . . 384 . . . . 426 . . . . . 1755 . . . Time 996 | . . . . . 47 . 78 . . . . 102 . . . . 304 . . . . . 465 . . . Total Part Build Rating 63 | . . . . . 5 . 5 . . . . 8 . . . . 10 . . . . . 35 . . . Parts Repaired 3 | . . . . . 1 . 2 . . . . . . . . . . . . . . . . . . . Time 190 | . . . . . 136 . 54 . . . . . . . . . . . . . . . . . . . Parts Recycled . | . . . . . . . . . . . . . . . . . . . . . . . . . . . Recycled Matter . | . . . . . . . . . . . . . . . . . . . . . . . . . . . Retrieved Matter . | . . . . . . . . . . . . . . . . . . . . . . . . . . . Retrieved Components 1 | . . . . . . . . . . . . 1 . . . . . . . . . . . . . . Parts Scanalyzed 3 | . . . 2 . . . . . . . . . . . . . 1 . . . . . . . . . Part Schematics Acquired 3 | . . . 2 . . . . . . . . . . . . . 1 . . . . . . . . . Parts Damaged 1 | . . . 1 . . . . . . . . . . . . . . . . . . . . . . . Bothacking | -11 -10 -10 -9 -8 -7 -7 -6 -6 -6 -6 -5 -5 -5 -5 -5 -4 -4 -4 -4 -4 -3 -3 -3 -3 -2 -2 ------------ Run | Scr Mat Min Mat Mat Fac Sto Fac Low Low Zio Pro Fac Upp Upp War Pro Fac Upp Upp Zhi Pro Res Arm Lab Res Tes Used RIF Installer . | . . . . . . . . . . . . . . . . . . . . . . . . . . . Robots Hacked . | . . . . . . . . . . . . . . . . . . . . . . . . . . . Non-combat . | . . . . . . . . . . . . . . . . . . . . . . . . . . . Combat . | . . . . . . . . . . . . . . . . . . . . . . . . . . . Robot Hacks Applied . | . . . . . . . . . . . . . . . . . . . . . . . . . . . Relay Couplers Released 1 | . . . . . . . . . . . . . . . . . . . . . . . . . 1 . Machine Destruction 1 | . . . . . . . . . . . . . . . . . . . . . . . . . 1 . Robots Rewired 8 | . . . . . . . . . . . . . . . . . . . . . . . 7 . . 1 Allies Hacked . | . . . . . . . . . . . . . . . . . . . . . . . . . . . Hacks Repelled . | . . . . . . . . . . . . . . . . . . . . . . . . . . . Allies | -11 -10 -10 -9 -8 -7 -7 -6 -6 -6 -6 -5 -5 -5 -5 -5 -4 -4 -4 -4 -4 -3 -3 -3 -3 -2 -2 -------- Run | Scr Mat Min Mat Mat Fac Sto Fac Low Low Zio Pro Fac Upp Upp War Pro Fac Upp Upp Zhi Pro Res Arm Lab Res Tes Total Allies 20 | . 1 2 . 1 1 . 1 . . . . . . . . . . . . . . . 7 . . 7 Largest Group 7 | . 1 2 2 1 1 . 1 1 . . . . . . . . . . . . . . 7 . . 4 Highest-Rated Group 348 | . 10 41 41 10 26 . 10 10 . . . . . . . . . . . . . . 348 . . 120 Highest-Rated Ally 120 | . 10 31 31 10 26 . 10 10 . . . . . . . . . . . . . . 56 . . 120 Total Orders . | . . . . . . . . . . . . . . . . . . . . . . . . . . . Ally Attacks 226 | . . . 27 . . . . . . . . . . . . . . . . . . . 168 . . 31 Total Damage 7898 | . . . 336 . . . . . . . . . . . . . . . . . . . 4471 . . 3091 Kills 45 | . . . 8 . . . . . . . . . . . . . . . . . . . 21 . . 16 Allies Corrupted 4 | . . . . . . . . . . . . . . . . . . . . . . . 4 . . . Allies Melted 2 | . . . . . . . . . . . . . . . . . . . . . . . . . 1 1 Intel | -11 -10 -10 -9 -8 -7 -7 -6 -6 -6 -6 -5 -5 -5 -5 -5 -4 -4 -4 -4 -4 -3 -3 -3 -3 -2 -2 ------- Run | Scr Mat Min Mat Mat Fac Sto Fac Low Low Zio Pro Fac Upp Upp War Pro Fac Upp Upp Zhi Pro Res Arm Lab Res Tes Robot Analysis Total 14 | . 5 . 1 2 . 2 . . . . . . . . . . . . . 4 . . . . . . Derelict Logs Recovered 13 | . . 1 . . . . . 2 2 . 1 . 2 2 . 1 . 2 . . . . . . . . Drone Launches 11 | . . . . . . . . . . . . . . . . . . . . . . . 11 . . . Drone Recoveries 1 | . . . . . . . . . . . . . . . . . . . . . . . 1 . . . Exploration | -11 -10 -10 -9 -8 -7 -7 -6 -6 -6 -6 -5 -5 -5 -5 -5 -4 -4 -4 -4 -4 -3 -3 -3 -3 -2 -2 ------------- Run | Scr Mat Min Mat Mat Fac Sto Fac Low Low Zio Pro Fac Upp Upp War Pro Fac Upp Upp Zhi Pro Res Arm Lab Res Tes Turns Passed 9067 | 26 740 561 1409 213 406 73 554 193 114 300 191 456 276 221 237 228 960 266 225 50 63 131 575 104 290 205 Spaces Moved 17643 | 12 528 503 681 488 881 205 1323 471 346 792 382 1351 760 501 834 976 1820 1031 819 166 259 402 746 219 749 398 Core 226 | . . . 1 . . . . 1 . . . . . . . . . . . . . . . . 27 197 Treads 95 | . 89 . . . . . . . . . . . . . . . . . . . . . . . . 6 Legs 169 | . . . 169 . . . . . . . . . . . . . . . . . . . . . . . Wheels 1465 | 12 439 503 511 . . . . . . . . . . . . . . . . . . . . . . . Hover . | . . . . . . . . . . . . . . . . . . . . . . . . . . . Flight 15688 | . . . . 488 881 205 1323 470 346 792 382 1351 760 501 834 976 1820 1031 819 166 259 402 746 219 722 195 Fastest Speed 20 | 80 80 105 95 31 28 26 26 26 26 27 27 23 23 23 21 22 22 22 22 22 22 25 25 25 21 20 Average Speed 33 | 80 109 105 131 31 28 26 26 26 26 27 27 23 23 23 22 22 22 22 22 22 23 25 25 25 25 39 Slowest Speed 600 | 80 160 105 280 34 28 28 26 300 27 27 27 23 23 23 23 22 22 22 22 22 25 95 95 27 600 150 Overloaded Moves . | . . . . . . . . . . . . . . . . . . . . . . . . . . . Propulsion Burnouts . | . . . . . . . . . . . . . . . . . . . . . . . . . . . Robots Hopped 101 | . . . . . 2 7 25 2 1 . . 21 . . . . 16 1 . . 1 3 11 1 6 4 Cave-ins Triggered . | . . . . . . . . . . . . . . . . . . . . . . . . . . . Teleports 1 | . . . . . . . . . . . . . . . . . . . . 1 . . . . . . Exploration Rate (%) 58 | 2 76 97 72 46 18 36 32 62 59 81 52 23 85 75 94 97 39 98 83 63 47 20 60 100 28 46 Regions Visited 26 Branch Regions 17 Pre-discovered Areas 6 | . . . . . . . . 1 . . . . . . . . . 2 . 3 . . . . . . Known Exits Taken 16 | . . . . 1 1 . 1 1 1 1 1 1 1 1 1 1 1 . . . . 1 . 1 1 . Unknown Exits Taken 10 | 1 1 1 1 . . 1 . . . . . . . . . . . 1 1 1 1 . 1 . . . Scrap Searched 21 | . . 1 . . . . . 2 1 3 . . 3 3 . 3 . 3 2 . . . . . . . Spaces Dug 204 | . 4 . 2 6 4 . 24 5 6 5 26 13 26 9 1 2 52 1 3 . . 8 6 . 1 . Terrain Destroyed 272 | . 4 . 30 43 4 . 24 5 6 5 26 13 26 9 1 2 52 1 3 . . 8 6 . 4 . Melee 150 | . . . . . 4 . 22 3 4 4 9 13 26 9 1 2 49 1 3 . . . . . . . Projectile 51 | . 4 . 2 . . . 2 2 2 1 17 . . . . . 3 . . . . 8 6 . 4 . AOE 71 | . . . 28 43 . . . . . . . . . . . . . . . . . . . . . . Terrain Rammed . | . . . . . . . . . . . . . . . . . . . . . . . . . . . Walls Destroyed . | . . . . . . . . . . . . . . . . . . . . . . . . . . . Machines Disabled . | . . . . . . . . . . . . . . . . . . . . . . . . . . . Actions | -11 -10 -10 -9 -8 -7 -7 -6 -6 -6 -6 -5 -5 -5 -5 -5 -4 -4 -4 -4 -4 -3 -3 -3 -3 -2 -2 --------- Run | Scr Mat Min Mat Mat Fac Sto Fac Low Low Zio Pro Fac Upp Upp War Pro Fac Upp Upp Zhi Pro Res Arm Lab Res Tes Total 19956 | 23 608 533 990 543 1032 216 1454 525 356 829 435 1448 814 591 880 983 2284 1046 857 178 260 416 1118 262 836 439 Wait 1390 | . 16 22 115 17 120 . 78 46 . . 17 85 19 79 14 5 392 2 35 . . . 289 21 10 8 Move 17441 | 11 527 502 680 487 876 192 1278 466 343 791 381 1315 759 500 833 975 1791 1028 818 165 256 395 730 216 736 390 Hop 75 | . . . . . 2 5 19 2 1 . . 14 . . . . 12 1 . . 1 3 4 1 6 4 Pick Up 115 | 3 8 3 24 8 12 5 9 . 1 3 2 5 1 1 6 . 9 1 . 2 . 2 4 1 4 1 Fast Attach 105 | . 4 . 10 5 . 3 7 1 1 1 . 4 1 . 8 . 4 . . 5 . 3 3 6 29 10 Attach 61 | 3 . . 8 6 5 1 5 . 1 . . 2 . . . . 6 . . 1 3 2 10 4 3 1 Detach 29 | . 1 . . . 2 . 1 1 . . . . . . . . 1 . . . . 2 12 4 3 2 Swap 61 | 1 7 . 10 2 2 . 6 3 3 2 6 4 3 1 3 . 5 . . . . 1 . . 2 . Drop 161 | 2 1 3 18 13 8 8 15 . . 4 2 3 2 1 14 . 11 . . 5 . . 6 4 33 8 Fire 233 | 3 40 3 123 5 . . 2 2 2 1 17 . . . . . 3 . . . . 8 9 5 10 . Melee 214 | . . . . . 5 2 34 4 4 27 10 16 29 9 2 3 50 14 4 . . . . . . 1 Ram 2 | . . . 2 . . . . . . . . . . . . . . . . . . . . . . . Kick . | . . . . . . . . . . . . . . . . . . . . . . . . . . . Crush 4 | . 4 . . . . . . . . . . . . . . . . . . . . . . . . . Escape Stasis . | . . . . . . . . . . . . . . . . . . . . . . . . . . . Rewire 61 | . . . . . . . . . . . . . . . . . . . . . . . 47 . . 14 Trap . | . . . . . . . . . . . . . . . . . . . . . . . . . . . Miscellaneous 4 | . . . . . . . . . . . . . . . . . . . . . . . 4 . . . Route ------- -11/Scrapyard -10/Materials (discovered 3 exits: *Mat x2 / *Min) -10/Mines (discovered 2 exits: *Mat x2) -9/Materials (discovered 2 exits: *Mat x2) -8/Materials (discovered 3 exits: *Fac x3) -7/Factory (discovered 4 exits: *Sto x2 / Low x2) -7/Storage -6/Factory (discovered 2 exits: *Low x2) -6/Lower Caves -6/Lower Caves (discovered 2 exits: *Fac / *Zio) -6/Zion (discovered 2 exits: [*Dee] / *Pro) -5/Proximity Caves -5/Factory (discovered 7 exits: *Fac x3 / *Upp x2 / Ext x2) -5/Upper Caves -5/Upper Caves (discovered 2 exits: *Fac / *War) -5/Warlord -4/Proximity Caves -4/Factory (discovered 4 exits: *Res x2 / *Upp x2) -4/Upper Caves -4/Upper Caves (discovered 2 exits: *Res / *Zhi) -4/Zhirov -3/Proximity Caves -3/Research (discovered 4 exits: *Res x2 / *Arm / Qua) -3/Armory -3/Lab -2/Research (discovered 2 exits: *Tes x2) -2/Testing History --------- Turn | Location | Event 14 | -11/Scrapyard | Discovered new exit (range 2) 27 | -11/Scrapyard | Entered Materials 65 | -10/Materials | Discovered new exit (range 6) 306 | -10/Materials | Build established: Mutant 507 | -10/Materials | Core integrity fell below 50% 580 | -10/Materials | Discovered new exit (range 15) 652 | -10/Materials | Discovered new exit (range 12) 767 | -10/Materials | Entered Mines 841 | -10/Mines | Learned Materials stockpile data 866 | -10/Mines | Discovered new exit (range 9) 1046 | -10/Mines | Found a damaged Exp. Sensor Array with a note attached 1059 | -10/Mines | Found Prototype Device 1290 | -10/Mines | Discovered new exit (range 16) 1328 | -10/Mines | Entered Materials 1328 | -9/Materials | Accompanied by 2 allies 1328 | -9/Materials | Evolved 2 slots: Utility x2 1333 | -9/Materials | Led the pair of lost Derelicts to an unsafe place 1765 | -9/Materials | Lost 3 parts (1p2u) 1943 | -9/Materials | Discovered new exit (range 9) 2039 | -9/Materials | Build established: Scavenger-Mutant 2128 | -9/Materials | First assault squad dispatched 2304 | -9/Materials | Core integrity fell below 50% 2355 | -9/Materials | Lost 8 parts (1p2n2u3w) 2399 | -9/Materials | Core integrity fell below 20% 2520 | -9/Materials | Identified Exp. Sensor Array 2646 | -9/Materials | Discovered new exit (range 9) 2737 | -9/Materials | Entered another Materials area 2737 | -8/Materials | Evolved 2 slots: Propulsion x2 2788 | -8/Materials | Central database locked down 2907 | -8/Materials | Identified exit to Factory 2950 | -8/Materials | Entered Factory 2950 | -7/Factory | Evolved 2 slots: Propulsion x1, Utility x1 3096 | -7/Factory | Repaired Broken Exp. Sensor Array 3126 | -7/Factory | Identified exit to Storage 3126 | -7/Factory | Identified exit to Lower Caves 3310 | -7/Factory | Fabricated Imp. Hacking Suite? 3356 | -7/Factory | Entered Storage 3388 | -7/Storage | Build established: Hacker-Sprinter 3421 | -7/Storage | Discovered new exit (range 16) 3429 | -7/Storage | Entered Factory 3429 | -6/Factory | Evolved 2 slots: Utility x2 3531 | -6/Factory | Repaired Mni. Grenade Launcher 3574 | -6/Factory | Repaired Lgt. Nuclear Core 3634 | -6/Factory | Identified exit to Lower Caves 3819 | -6/Factory | Fabricated Imp. Hacking Suite? 3822 | -6/Factory | Local fabrication network quarantined 3983 | -6/Factory | Entered Lower Caves 3983 | -6/Lower Caves | Accompanied by 1 ally 4021 | -6/Lower Caves | Learned location of Extension (-5) 4101 | -6/Lower Caves | Encountered a Warlord checkpoint 4158 | -6/Lower Caves | Learned Factory stockpile data 4174 | -6/Lower Caves | Discovered new exit (range 3) 4174 | -6/Lower Caves | Identified exit to Lower Caves 4176 | -6/Lower Caves | Entered another Lower Caves area 4186 | -6/Lower Caves | Discovered new exit (range 19) 4193 | -6/Lower Caves | Attracted the attention of an 0b10 checkpoint 4280 | -6/Lower Caves | Learned location of 1 exit from Factory 4288 | -6/Lower Caves | Discovered new exit (range 5) 4289 | -6/Lower Caves | Learned Factory garrison access intel 4289 | -6/Lower Caves | Identified exit to Zion 4290 | -6/Lower Caves | Entered Zion 4308 | -6/Zion | Discovered new exit (range 12) 4325 | -6/Zion | System corruption cleaned by Quarantine Array 4348 | -6/Zion | Found Prototype Device 4483 | -6/Zion | Discovered new exit (range 5) 4484 | -6/Zion | Saw the warning signs outside the Deep Caves entrance 4514 | -6/Zion | Found GAL Module 4590 | -6/Zion | Identified exit to Proximity Caves 4590 | -6/Zion | Entered Proximity Caves 4606 | -5/Proximity Caves | Found Alien Artifact 4629 | -5/Proximity Caves | Spotted B-75 Beast 4770 | -5/Proximity Caves | Attracted the attention of an 0b10 checkpoint 4781 | -5/Proximity Caves | Discovered new exit (range 4) 4781 | -5/Proximity Caves | Identified exit to Factory 4781 | -5/Proximity Caves | Entered Factory 4781 | -5/Factory | Evolved 2 slots: Propulsion x1, Utility x1 4782 | -5/Factory | Identified exit to Factory 4784 | -5/Factory | Loaded intel: 3 garrison access locations 4870 | -5/Factory | Discovered exit to Factory (range 3) 4891 | -5/Factory | Discovered new exit (range 17) 4957 | -5/Factory | Discovered exit to Factory (range 13) 5071 | -5/Factory | Identified exit to Upper Caves 5071 | -5/Factory | Identified exit to Extension 5081 | -5/Factory | First assault squad dispatched 5220 | -5/Factory | Fabricated Exp. Sensor Array? 5237 | -5/Factory | Entered Upper Caves 5239 | -5/Upper Caves | Identified Mobile Refinery Mk. CCLXVII 5389 | -5/Upper Caves | Learned 8 Research zone layouts 5389 | -5/Upper Caves | Learned Extension security intel 5406 | -5/Upper Caves | Learned Factory garrison access intel 5448 | -5/Upper Caves | Discovered new exit (range 10) 5449 | -5/Upper Caves | Learned Factory terminal intel 5512 | -5/Upper Caves | Identified exit to Upper Caves 5513 | -5/Upper Caves | Entered another Upper Caves area 5525 | -5/Upper Caves | Discovered exit to Factory (range 15) 5540 | -5/Upper Caves | Build established: Hacker-Scout 5709 | -5/Upper Caves | Encountered a Warlord checkpoint 5719 | -5/Upper Caves | Learned Factory terminal intel 5720 | -5/Upper Caves | Discovered new exit (range 8) 5721 | -5/Upper Caves | Identified exit to Warlord 5728 | -5/Upper Caves | Learned 4 Factory zone layouts 5734 | -5/Upper Caves | Entered Warlord 5842 | -5/Warlord | Warlord's base attacked by MAIN.C 5863 | -5/Warlord | Found Prototype Piercing Weapon 5863 | -5/Warlord | Identified Vortex Lance 5865 | -5/Warlord | Found Vortex Lance 5899 | -5/Warlord | Met Warlord 5919 | -5/Warlord | Found Prototype Processor 5919 | -5/Warlord | Identified Spectral Analyzer 5925 | -5/Warlord | Found Prototype Hackware 5945 | -5/Warlord | Build established: Hacker-Ninja 5961 | -5/Warlord | Opened side exit 5969 | -5/Warlord | Discovered new exit (range 9) 5971 | -5/Warlord | Identified exit to Proximity Caves 5971 | -5/Warlord | Entered Proximity Caves 6065 | -4/Proximity Caves | Discovered exit to Factory (range 13) 6075 | -4/Proximity Caves | Learned Research stockpile data 6199 | -4/Proximity Caves | Entered Factory 6199 | -4/Factory | Evolved 2 slots: Utility x2 6201 | -4/Factory | Loaded intel: 20 terminal locations 6202 | -4/Factory | Loaded intel: 4 garrison access locations 6225 | -4/Factory | Found Quantum Capacitor 6421 | -4/Factory | Spotted B-86 Titan 6482 | -4/Factory | Discovered new exit (range 23) 6489 | -4/Factory | Identified Ghost Barrier 6664 | -4/Factory | Identified exit to Upper Caves 6667 | -4/Factory | Discovered new exit (range 22) 6860 | -4/Factory | Fabricated Exp. Propulsion Shielding (x1) 6867 | -4/Factory | Fabricated Exp. Propulsion Shielding (x1) 7159 | -4/Factory | Entered Upper Caves 7255 | -4/Upper Caves | Learned location of Testing (-2) 7322 | -4/Upper Caves | Discovered new exit (range 18) 7425 | -4/Upper Caves | Entered another Upper Caves area 7447 | -4/Upper Caves | Discovered new exit (range 16) 7464 | -4/Upper Caves | Build established: Hacker-Sprinter 7644 | -4/Upper Caves | Discovered new exit (range 10) 7650 | -4/Upper Caves | Entered Zhirov 7650 | -4/Zhirov | Discovered new exit (range 3) 7654 | -4/Zhirov | Met Zhirov 7659 | -4/Zhirov | Learned location of Quarantine (-3) 7659 | -4/Zhirov | Learned location of Command (-1) 7663 | -4/Zhirov | Zhirov requested help retrieving the SGEMP Prototype 7666 | -4/Zhirov | Found Alien Artifact 7670 | -4/Zhirov | Found Alien Artifact 7670 | -4/Zhirov | Identified Transdimensional Reconstructor 7670 | -4/Zhirov | Warped through subspace 7673 | -4/Zhirov | Identified Integrated Dissipator 7673 | -4/Zhirov | Installed Integrated Dissipator, increased core heat dissipation (+20) 7700 | -4/Zhirov | Entered Proximity Caves 7700 | -3/Proximity Caves | Spotted B-86 Titan 7738 | -3/Proximity Caves | Lost 4 parts (1p1n1u1w) 7761 | -3/Proximity Caves | Discovered new exit (range 10) 7763 | -3/Proximity Caves | Entered Research 7763 | -3/Research | Evolved 2 slots: Utility x2 7764 | -3/Research | Identified exit to Armory 7765 | -3/Research | Identified exit to Quarantine 7765 | -3/Research | Identified exit to Research 7807 | -3/Research | Spotted B-86 Titan 7848 | -3/Research | Spotted B-86 Titan 7882 | -3/Research | Discovered exit to Research (range 15) 7894 | -3/Research | Entered Armory 8027 | -3/Armory | Fabricated Assault Drone Bay (x1) 8029 | -3/Armory | Fabricated Assault Drone Bay? 8127 | -3/Armory | Fabricated Assault Drone Bay (x1) 8129 | -3/Armory | Fabricated Assault Drone Bay (x1) 8203 | -3/Armory | Local fabrication network quarantined 8227 | -3/Armory | Fabricated Assault Drone Bay (x1) 8334 | -3/Armory | Assembled infested ambush trap array 8382 | -3/Armory | Found Adv. Force Booster 8442 | -3/Armory | First assault squad dispatched 8462 | -3/Armory | Discovered new exit (range 16) 8469 | -3/Armory | Entered Lab 8469 | -3/Lab | Discovered exit to Research (range 9) 8473 | -3/Lab | Unable to decrypt terminal 8473 | -3/Lab | Opened the door to a hidden lab 8474 | -3/Lab | Gained access to the hidden lab's interior 8474 | -3/Lab | Detected by scanners 8475 | -3/Lab | Found Alien Artifact 8475 | -3/Lab | Identified Core Reset Matrix 8475 | -3/Lab | Used Core Reset Matrix 8479 | -3/Lab | Sensed 3 artifacts in vicinity 8483 | -3/Lab | Confronted by A5 8490 | -3/Lab | Found Integrated Dissipator 8490 | -3/Lab | Installed Integrated Dissipator, increased core heat dissipation (+20) 8493 | -3/Lab | Found Transdimensional Reconstructor 8500 | -3/Lab | Found Prototype Hackware 8500 | -3/Lab | Identified Quantum Router 8503 | -3/Lab | Found Prototype Protection 8503 | -3/Lab | Identified Med. Regenerative Plating 8505 | -3/Lab | Found Prototype Energy Gun 8505 | -3/Lab | Identified Tachyon Dispersion Ray 8507 | -3/Lab | Found Prototype Energy Cannon 8507 | -3/Lab | Identified Warp Cannon 8512 | -3/Lab | Discovered exit to Research (range 21) 8522 | -3/Lab | Disabled Active System Cloaker 8547 | -3/Lab | MAIN.C forces arrive to investigate 8573 | -3/Lab | Entered Research 8573 | -2/Research | Warlord forces began assault on 0b10 8573 | -2/Research | Evolved 2 slots: Weapon x2 8580 | -2/Research | Met up with Warlord 8606 | -2/Research | Identified exit to Testing 8683 | -2/Research | Research machine network offline 8795 | -2/Research | Found Prototype Device 8795 | -2/Research | Identified Exp. Shield Generator 8804 | -2/Research | Borebot progress halted 8818 | -2/Research | Found Prototype Device 8818 | -2/Research | Identified Beam Splitter 8826 | -2/Research | Spotted Tracker 8828 | -2/Research | Spotted Tracker 8849 | -2/Research | Released all parts (13) 8852 | -2/Research | Spotted Combat Programmer 8863 | -2/Research | Entered Testing 8867 | -2/Testing | Spotted PD-CNBTLJV1VH 8880 | -2/Testing | Lost 6 parts (2n4u) 8882 | -2/Testing | Rewired PD-CNBTLJV1VH 8890 | -2/Testing | Found Unknown Piercing Weapon 8890 | -2/Testing | Identified Enh. Force Lance 8910 | -2/Testing | Core integrity fell below 50% 8916 | -2/Testing | Found Prototype Device 8916 | -2/Testing | Identified Exp. Weapon Cycler 8931 | -2/Testing | Garrison activated, responded to threat 8945 | -2/Testing | Spotted Striker 9030 | -2/Testing | Spotted Alpha 7 9032 | -2/Testing | Emitted hypermatrix ping 9036 | -2/Testing | Unstable Terrabomb Derivative detonated 9037 | -2/Testing | Assembled emerged from beneath the floor 9065 | -2/Testing | Core integrity fell below 20% 9068 | -2/Testing | Destroyed by H-88 Terminator with KE Penetrator Last Messages --------------- 09037_ Assembled emerge from beneath the floor. 09037_ Slug penetrates as-60199. 09037_ Slug penetrates as-26041. 09037_ as-26041 suffers critical hit (Destroy). 09037_ as-26041 destroyed. 09037_ as-19297 suffers critical hit (Destroy). 09037_ as-19297 destroyed. 09038_ Slug penetrates G-73 Enforcer. 09038_ G-73 Enforcer system corrupted by crushing effect. 09040_ ALERT: Hostile activity reported, dispatching reinforcements to area. 09041_ System corrupted: Matter fused (-8). 09042_ Slug penetrates Wall. 09049_ Slug penetrates G-73 Enforcer. 09060_ Penetrated by Slug. 09064_ Slug penetrates Wall. 09065_ Penetrated by Slug. 09065_ Acquired 8 matter. 09066_ Acquired 2 matter. 09067_ Penetrated by Slug. Map ----- +----------------------------------------------------+ | | | | | ????#####????????????????????????????????????????? | | ???? ???????????????????????????????????????? | | ???"" ???????????????????????????????????????? | | ??#"" ""?????????????????????????????????????? | | ??#"" """""? #??????????????????????????????? | | ??#T #??????????????????????????????? | | ??#"" """"" #?????#####????????????????????? | | ??#"" """"" #????? #????????????????????? | | ????" """"" ?????? #????????????????????? | | ?????? ???????? ! #????????????????????? | | ???????? ????????? #????????????????????? | | ##########+########### #????????????????????? | | # + #????????????????????? | | ########????????????????????? | | #???????????????????????????? | | # #???????????????????????????? | | # ###### ###### #???????????????????????????? | | # #????# #????# #???????????????????????????? | | # #????# #????# #???????????????????????????? | | #????#####????# #???????????????????????????? | | #?????????????# #???????????????????????????? | | #?????????????# #???????????????????????????? | | ############### #######+#######?????????????? | | # % % h @ ????????? | | # %= ^ h ????????? | | # %% %R """ ????????? | | + h % % """????????????? | | # ####################Y ### ""?????????????? | | # #??????????????????# % #??? ????????????? | | # #??????????????????# #?????""k???????????? | | # #??????????????????+ #???????????????????? | | # #??????????????????# #???????????????????? | | # % #???????????????????c #???????????????????? | | # #??????????????????? #???????????????????? | | # #??????????????????? #???????????????????? | | # #??????????????????? #???????????????????? | | # #??????????????????? #???????????????????? | | #??????????????????? #???????????????????? | | #??????????????????? ?????????????????????? | | %= #???????????????????????????????????????????? | | #???????????????????????????????????????????? | | %! #????#??????????????????????????????????????? | | #??? #??????????????????????????????????????? | | #?? #??????????????????????????????????????? | | #? ##?????????????????????????????????????? | | ## ]#?????????????????????????????????????? | | %/ [#?????????????????????????????????????? | | %/ ]#?????????????????????????????????????? | +----------------------------------------------------+ Best States ------------- Heat Dissipation 89 Energy Generation 31 Energy Capacity 360 Matter Stores 300 Matter Capacity 300 Sight Range 24 Robot Scan Range 20 Terrain Scan Range 20 Terrain Scan Density 10 ECM Strength 2 Jamming Range 12 Cloak Strength 3 Power Amplification 30 Additional Mass Support 9 Armor Coverage 450 Propulsion Shielding 90 Melee Speed Boost 30 Phase Shifting 15 Evasion (%) 80 Target Analysis 8 Recoil Reduction 3 Offensive Hacking 38 Defensive Hacking 57 Item Schematics ----------------- None Robot Schematics ------------------ None Fabricated ------------ Imp. Hacking Suite | x1 | -7/Factory Imp. Hacking Suite | x1 | -6/Factory Exp. Sensor Array | x1 | -5/Factory Exp. Propulsion Shielding | x1 | -4/Factory Exp. Propulsion Shielding | x1 | -4/Factory Assault Drone Bay | x1 | -3/Armory Assault Drone Bay | x1 | -3/Armory Assault Drone Bay | x1 | -3/Armory Assault Drone Bay | x1 | -3/Armory Assault Drone Bay | x1 | -3/Armory Alien Tech Used ----------------- Transdimensional Reconstructor Integrated Dissipator Core Reset Matrix Achievements -------------- None Challenges ------------ None Game ------ Seed DisposableHeavyStripper Manual? 0 Play Time 03:27:38 Cumulative 267.8 hours Start 2021.07.15 @ 09:45:13 End 2021.07.15 @ 15:26:00 Sessions 3 Manual Loads 0 Difficulty Rogue Special Mode None Game No. 146 Rogue 146 Adventurer 0 Explorer 0 Win Type - Total 8 Types 6/0/1/1/0/0/0/0/0 Lore% 76 Gallery% 81 Achievement% 60 Wizard Run 0 Options --------- ASCII 0 Keyboard 0 Movement Numpad Keybinds 0 Fullscreen 1 Font 18/SmallcapsGlow Map View 76x50 Tactical HUD 1 Map Filters NONE Filters NONE Steam 1 RUN: 6bae4633-5d91-4be4-819f-e479512e855b